bitfinex-derivatives/quotes_SOLF0:USTF0_20250606
["timestamp","ask_amount","ask_price","bid_price","bid_amount"]
[1749224371397,7.95080915,150.72,150.7,10.0467524]
[1749224371599,2.88180716,150.71,150.7,16.6771524]
[1749224372004,2.88180716,150.71,150.7,10.0467524]
[1749224372204,2.88104394,150.71,150.7,16.6771524]
[1749224372508,14.83577398,150.73,150.7,16.6771524]
[1749224372703,2.88101191,150.72,150.7,10.0467524]
[1749224373008,2.88091551,150.71,150.7,10.0467524]
[1749224373306,6.6295,150.72,150.7,10.0467524]
[1749224373609,0.04269004,150.73,150.7,10.0467524]
[1749224373809,2.87896818,150.72,150.7,10.0467524]
[1749224374106,6.6295,150.72,150.7,10.0467524]
[1749224374506,8.16378394,150.72,150.7,10.0467524]
[1749224374903,9.51173758,150.71,150.7,10.0467524]
[1749224376103,6.6299,150.71,150.7,10.0467524]
[1749224376309,9.51021569,150.71,150.7,10.0467524]
[1749224376711,17.67399963,150.71,150.7,10.0467524]
[1749224376911,9.51021569,150.71,150.7,10.0467524]
[1749224377310,11.04409963,150.71,150.57,12.37597467]
[1749224377510,174.78999639,150.7,150.59,2.2876]
[1749224377708,12.40834796,150.69,150.57,6.636]
[1749224377909,8.16378394,150.63,150.56,1.1552826]
[1749224378117,8.16378394,150.61,150.54,41.849]
[1749224378304,0.04620443,150.59,150.56,0.0449483]
[1749224378908,6.68140443,150.59,150.56,0.0449483]
[1749224379204,8.20998837,150.59,150.56,0.0449483]
[1749224379511,0.04620443,150.59,150.56,10.0449483]
[1749224379705,0.04620443,150.59,150.57,6.6361]
[1749224379911,0.04620443,150.59,150.56,10.0449483]
[1749224380416,0.04620443,150.59,150.58,6.6357]
[1749224380604,0.04620443,150.59,150.56,10.0449483]
[1749224381216,0.04620443,150.59,150.58,6.6357]
[1749224382611,136.8589,150.68,150.57,8.16378394]
[1749224382612,2.1989,150.68,150.57,8.16378394]
[1749224382810,2.82633798,150.67,150.59,8.16378394]
[1749224383016,8.16378394,150.67,150.56,55.10378394]
[1749224383207,10.99021963,150.67,150.59,8.16378394]
[1749224383510,0.05043718,150.65,150.61,0.04233621]
[1749224383815,0.05043718,150.65,150.62,6.6338]
[1749224385920,0.05043718,150.65,150.61,6.67663621]
[1749224386116,0.05043718,150.65,150.61,0.04233621]
[1749224386618,0.05043718,150.65,150.62,6.6335]
[1749224386920,0.05043718,150.65,150.61,0.04233621]
[1749224387717,0.05043718,150.65,150.61,6.67633621]
[1749224388718,0.05043718,150.65,150.62,6.6339]
[1749224389312,8.21422112,150.65,150.62,6.6339]
[1749224390221,8.21422112,150.65,150.61,6.67653621]
[1749224391122,8.21422112,150.65,150.61,0.04233621]
[1749224391524,8.21422112,150.65,150.62,6.6336]
[1749224391821,8.21422112,150.65,150.61,0.04233621]
[1749224392521,14.84682112,150.65,150.61,6.67643621]
[1749224392818,6.68303718,150.65,150.61,6.67643621]
[1749224393123,6.68303718,150.65,150.62,6.6338]
[1749224394219,6.68303718,150.65,150.61,6.67653621]
[1749224394414,6.6331,150.64,150.61,6.67653621]
[1749224394630,0.05043718,150.65,150.61,0.04233621]
[1749224394924,14.79708394,150.64,150.61,0.04233621]
[1749224395220,14.79708394,150.64,150.61,6.67663621]
[1749224395926,6.6333,150.64,150.61,6.67663621]
[1749224396118,0.05043718,150.65,150.61,6.67663621]
[1749224396325,2.83587293,150.64,150.61,0.04233621]
[1749224396623,6.6339,150.62,150.61,0.04233621]
[1749224396825,37.01043718,150.65,150.61,0.04233621]
[1749224397223,8.16378394,150.64,150.61,6.67643621]
[1749224397816,37.01043718,150.65,150.62,6.6339]
[1749224398018,2.83586981,150.64,150.62,6.6339]
[1749224398225,45.17422112,150.65,150.62,6.6339]
[1749224398425,9.4688953,150.64,150.61,6.67643621]
[1749224398627,10.99961087,150.63,150.61,0.04233621]
[1749224398926,10.99961087,150.62,150.61,0.04233621]
[1749224399115,15.94249046,150.62,150.61,0.04233621]
[1749224399515,22.57639046,150.62,150.61,10.04233621]
[1749224399821,22.57957454,150.62,150.61,10.04233621]
[1749224400027,19.74020954,150.62,150.61,10.04233621]
[1749224400226,22.57959346,150.62,150.61,10.04233621]
[1749224400426,15.94565986,150.62,150.61,10.04233621]
[1749224401122,15.94565986,150.62,150.52,36.96]
[1749224401323,8.16378394,150.57,150.52,36.96]
[1749224401527,4.94485388,150.6,150.52,45.12378394]
[1749224401731,8.16378394,150.62,150.54,8.16378394]
[1749224402022,8.16378394,150.62,150.59,6.6349]
[1749224402222,7.78584278,150.61,150.59,6.68361615]
[1749224402422,2.84536868,150.6,150.59,6.68361615]
[1749224402624,14.83953842,150.62,150.59,6.68361615]
[1749224402826,2.84525895,150.61,150.6,6.6348]
[1749224403027,2.84525895,150.61,150.59,10.04871615]
[1749224403329,14.83953842,150.62,150.6,6.6346]
[1749224403625,7.79510651,150.61,150.59,10.04871615]
[1749224403930,7.79388718,150.6,150.59,10.04871615]
[1749224404126,15.95767112,150.6,150.59,10.04871615]
[1749224404329,13.1127169,150.6,150.59,10.04871615]
[1749224404524,15.9601965,150.6,150.59,10.04871615]
[1749224405121,15.95184085,150.6,150.59,10.04871615]
[1749224405427,15.95605091,150.6,150.59,10.04871615]
[1749224405629,15.9561042,150.6,150.59,10.04871615]
[1749224406633,13.11691015,150.6,150.59,10.04871615]
[1749224406933,13.11603253,150.6,150.59,10.04871615]
[1749224407227,15.94444541,150.6,150.59,10.04871615]
[1749224407428,15.94570662,150.6,150.59,10.04871615]
[1749224407634,13.1056318,150.6,150.59,16.68391615]
[1749224407835,2.83802145,150.6,150.59,16.68391615]
[1749224408039,8.20563842,150.62,150.59,10.04871615]
[1749224408238,7.78031579,150.61,150.6,6.6348]
[1749224408437,7.7726536,150.61,150.6,6.6348]
[1749224408633,7.77174612,150.61,150.59,10.04871615]
[1749224408947,2.83731647,150.6,150.59,10.04871615]
[1749224409241,0.04185448,150.62,150.61,6.6344]
[1749224409442,2.87835018,150.62,150.61,6.6344]
[1749224409735,11.04213412,150.62,150.61,6.6343]
[1749224409937,2.87892478,150.62,150.59,10.04871615]
[1749224410135,2.83682599,150.61,150.59,10.04871615]
[1749224410337,0.04185448,150.62,150.59,10.04871615]
[1749224411143,0.04185448,150.62,150.59,18.21250009]
[1749224411341,13.10701898,150.67,150.59,10.04871615]
[1749224411642,15.94491414,150.66,150.6,2.1873]
[1749224411838,7.7811302,150.65,150.6,2.1873]
[1749224412047,2.83793476,150.64,150.6,2.1873]
[1749224412243,8.16378394,150.66,150.6,2.1873]
[1749224412446,6.633,150.64,150.61,6.68203386]
[1749224412639,0.04682601,150.65,150.61,6.68203386]
[1749224412843,2.83711475,150.64,150.61,6.68203386]
[1749224413044,6.633,150.64,150.61,6.68203386]
[1749224413550,6.6337,150.63,150.61,0.04803386]
[1749224413943,0.04682601,150.65,150.61,0.04803386]
[1749224414243,2.83989802,150.64,150.61,0.04803386]
[1749224414444,0.04682601,150.65,150.61,10.04803386]
[1749224414747,9.47292704,150.64,150.61,16.68203386]
[1749224414944,0.04682601,150.65,150.61,10.04803386]
[1749224415149,2.85428464,150.64,150.62,8.16378394]
[1749224415349,0.04682601,150.65,150.62,8.16378394]
[1749224415744,0.04682601,150.65,150.61,55.0518178]
[1749224417144,6.67942601,150.65,150.62,6.6338]
[1749224417546,0.04682601,150.65,150.61,55.0518178]
[1749224417742,0.04682601,150.65,150.63,6.6332]
[1749224418044,0.04682601,150.65,150.63,8.16378394]
[1749224418249,43.4703,150.71,150.63,8.16378394]
[1749224418449,7.84585971,150.7,150.65,8.16378394]
[1749224418751,16.00964365,150.69,150.64,2.1004]
[1749224418947,4.98307108,150.68,150.64,2.1004]
[1749224419147,9.49240862,150.67,150.64,8.7332]
[1749224419353,0.04286597,150.68,150.64,8.77667684]
[1749224419548,0.04286597,150.68,150.64,0.04347684]
[1749224419756,6.6324,150.66,150.64,0.04347684]
[1749224420255,2.86260496,150.65,150.64,6.67647684]
[1749224421454,6.6319,150.67,150.65,6.6325]
[1749224421753,7.89657696,150.66,150.65,6.6325]
[1749224422148,7.89657696,150.66,150.64,0.04347684]
[1749224422350,2.86415535,150.65,150.64,0.04347684]
[1749224422751,0.04286597,150.68,150.64,0.04347684]
[1749224422952,7.90398891,150.67,150.64,0.04347684]
[1749224423152,2.86659573,150.66,150.64,0.04347684]
[1749224423352,0.04286597,150.68,150.65,6.6323]
[1749224423550,0.04286597,150.68,150.64,0.04347684]
[1749224423745,7.90466318,150.67,150.65,6.6323]
[1749224423949,2.86677461,150.66,150.65,6.6323]
[1749224424245,2.86660511,150.66,150.65,6.6323]
[1749224424649,0.04286597,150.68,150.66,6.6318]
[1749224424845,7.90418994,150.67,150.66,6.6318]
[1749224425245,132.65737068,150.73,150.66,6.6318]
[1749224425246,8.29570374,150.75,150.71,6.6295]
[1749224425447,19.8706,150.86,150.64,0.04347684]
[1749224425448,5.36173035,150.76,150.7,8.16378394]
[1749224425649,5.36173035,150.78,150.71,8.16378394]
[1749224425850,13.52551429,150.79,150.74,6.6284]
[1749224426053,13.52551429,150.79,150.71,8.16378394]
[1749224426263,0.0423614,150.77,150.73,0.04349957]
[1749224426758,6.6698614,150.77,150.73,0.04349957]
[1749224426959,0.0423614,150.77,150.73,0.04349957]
[1749224427160,8.20614534,150.77,150.73,0.04349957]
[1749224427461,8.20614534,150.77,150.73,6.67249957]
[1749224427760,6.6281,150.76,150.73,6.67249957]
[1749224428159,0.0423614,150.77,150.73,0.04349957]
[1749224428861,6.6699614,150.77,150.74,6.6283]
[1749224429562,0.0423614,150.77,150.74,10.0]
[1749224431053,0.0423614,150.77,150.75,6.6279]
[1749224431254,0.0423614,150.77,150.74,10.0]
[1749224431468,0.0423614,150.77,150.75,6.6278]
[1749224431665,0.0423614,150.77,150.74,10.0]
[1749224433061,0.0423614,150.77,150.74,16.6283]
[1749224433365,0.0423614,150.77,150.74,10.0]
[1749224435162,0.0423614,150.77,150.74,16.6284]
[1749224435361,0.0423614,150.77,150.74,10.0]
[1749224435566,6.6277,150.76,150.74,10.0]
[1749224435766,0.0423614,150.77,150.74,10.0]
[1749224436671,6.6281,150.76,150.74,10.0]
[1749224437364,6.6698614,150.77,150.74,10.0]
[1749224437866,0.0423614,150.77,150.74,10.0]
[1749224439377,6.6282,150.75,150.74,10.0]
[1749224440270,49.51888394,150.76,150.68,36.82]
[1749224440466,41.3551,150.76,150.62,4.5202]
[1749224440667,6.6311,150.69,150.63,44.98378394]
[1749224440866,8.16378394,150.7,150.63,44.98378394]
[1749224441066,8.16378394,150.7,150.64,6.6328]
[1749224441268,0.04929313,150.69,150.65,0.04849534]
[1749224441568,0.04929313,150.69,150.67,6.6315]
[1749224441762,0.04929313,150.69,150.65,0.04849534]
[1749224441969,0.04929313,150.69,150.66,6.6321]
[1749224442170,0.04929313,150.69,150.65,0.04849534]
[1749224442372,0.04929313,150.69,150.66,10.0]
[1749224443572,0.04929313,150.69,150.68,6.6313]
[1749224444475,0.04929313,150.69,150.67,6.6315]
[1749224444675,0.04929313,150.69,150.66,10.0]
[1749224446276,0.04929313,150.69,150.68,6.6313]
[1749224447074,0.04929313,150.69,150.66,10.0]
[1749224447372,8.21307707,150.69,150.66,10.0]
[1749224447771,6.6317,150.67,150.66,10.0]
[1749224449276,6.6314,150.68,150.66,10.0]
[1749224449480,0.04929313,150.69,150.66,10.0]
[1749224449872,6.68029313,150.69,150.66,10.0]
[1749224450372,6.68029313,150.69,150.66,16.6319]
[1749224450676,0.04929313,150.69,150.66,10.0]
[1749224451268,6.6313,150.68,150.66,10.0]
[1749224451977,0.04929313,150.69,150.66,10.0]
[1749224453582,6.6315,150.68,150.66,10.0]
[1749224454078,0.04929313,150.69,150.66,10.0]
[1749224454575,6.6315,150.68,150.66,10.0]
[1749224454776,0.04929313,150.69,150.66,10.0]
[1749224454978,6.6317,150.67,150.66,10.0]
[1749224455183,8.16378394,150.68,150.66,10.0]
[1749224456782,14.79528394,150.68,150.66,10.0]
[1749224459284,14.79528394,150.68,150.65,0.04849534]
[1749224459486,8.16378394,150.68,150.66,10.0]
[1749224459885,6.68029313,150.69,150.66,10.0]
[1749224460789,0.04929313,150.69,150.66,10.0]
[1749224461587,6.6317,150.67,150.66,10.0]
[1749224462588,11.48672801,150.67,150.66,10.0]
[1749224463083,4.85502801,150.67,150.59,36.96]
[1749224463288,8.16378394,150.64,150.58,2.3057]
[1749224463985,0.05038909,150.63,150.59,0.04215013]
[1749224464782,2.2647,150.72,150.61,8.16378394]
[1749224464986,2.2647,150.72,150.63,8.16378394]
[1749224464987,49.96551231,150.71,150.63,8.16378394]
[1749224465183,6.6312,150.69,150.64,6.6328]
[1749224465383,4.84172837,150.68,150.64,6.6328]
[1749224465686,13.01507062,150.69,150.62,2.1281]
[1749224465884,0.05063522,150.67,150.64,0.04725927]
[1749224466083,6.6325,150.66,150.64,0.04725927]
[1749224466285,8.21441916,150.67,150.64,0.04725927]
[1749224466682,6.6326,150.65,150.64,0.04725927]
[1749224470290,14.79638394,150.65,150.64,5.927e-05]
[1749224470485,6.6348,150.6,150.59,10.0]
[1749224471592,14.79858394,150.6,150.59,10.0]
[1749224475189,6.6348,150.6,150.59,10.0]
[1749224475588,14.79858394,150.6,150.59,10.0]
[1749224476887,8.21183198,150.61,150.59,10.0]
[1749224477394,6.6348,150.6,150.59,10.0]
[1749224478089,8.21183198,150.61,150.53,2.74723823]
[1749224478287,8.16378394,150.54,150.53,2.74723823]
[1749224478492,36.74,150.57,150.53,2.74723823]
[1749224478682,6.6373,150.55,150.53,2.74723823]
[1749224478882,8.16378394,150.56,150.53,2.74723823]
[1749224479090,0.04426456,150.56,150.53,2.79074058]
[1749224479894,0.04426456,150.56,150.53,12.79074058]
[1749224480191,6.6371,150.55,150.53,12.79074058]
[1749224480688,14.8447485,150.56,150.53,12.79074058]
[1749224480894,0.04426456,150.56,150.53,12.79074058]
[1749224481296,6.68086456,150.56,150.53,12.79074058]
[1749224482188,6.6374,150.54,150.53,12.79074058]
[1749224482391,14.80118394,150.54,150.53,12.79074058]
[1749224482697,6.6371,150.55,150.53,12.79074058]
[1749224483085,8.16378394,150.55,150.53,12.79074058]
[1749224483287,6.6374,150.54,150.53,12.79074058]
[1749224483887,8.16378394,150.55,150.53,12.79074058]
[1749224484489,6.6374,150.54,150.53,12.79074058]
[1749224485097,8.2080485,150.56,150.53,12.79074058]
[1749224485496,0.04426456,150.56,150.53,12.79074058]
[1749224485697,0.04426456,150.56,150.53,19.42834058]
[1749224485895,0.04426456,150.56,150.53,21.66284058]
[1749224486101,0.04426456,150.56,150.54,6.6374]
[1749224486295,0.04426456,150.56,150.53,23.18902452]
[1749224486797,0.04426456,150.56,150.53,29.82662452]
[1749224488094,0.04426456,150.56,150.53,15.02524058]
[1749224488502,0.04426456,150.56,150.53,21.66284058]
[1749224488703,0.04426456,150.56,150.53,23.18902452]
[1749224488998,0.04426456,150.56,150.53,15.02524058]
[1749224491110,0.04426456,150.56,150.53,21.66314058]
[1749224491301,0.04426456,150.56,150.53,15.02524058]
[1749224492907,0.04426456,150.56,150.53,21.66284058]
[1749224493302,0.04426456,150.56,150.53,15.02524058]
[1749224493602,8.16378394,150.61,150.55,6.637]
[1749224493809,6.6355,150.59,150.55,6.637]
[1749224494411,6.6358,150.58,150.55,6.6836178]
[1749224494611,6.6358,150.58,150.55,0.0466178]
[1749224495509,0.04358637,150.59,150.55,0.0466178]
[1749224495701,8.20737031,150.59,150.55,0.0466178]
[1749224496708,6.6359,150.58,150.55,0.0466178]
[1749224497004,0.04358637,150.59,150.55,0.0466178]
[1749224498298,6.67908637,150.59,150.55,0.0466178]
[1749224499108,6.6357,150.58,150.55,6.6834178]
[1749224499802,14.80038394,150.56,150.55,0.0466178]
[1749224502608,6.6363,150.57,150.55,0.0466178]
[1749224502807,8.16378394,150.56,150.55,0.0466178]
[1749224504307,36.80358637,150.59,150.55,0.0466178]
[1749224504509,8.16378394,150.56,150.55,10.0466178]
[1749224505412,8.16378394,150.58,150.55,10.0466178]
[1749224505608,14.79958394,150.58,150.55,10.0466178]
[1749224506214,36.80358637,150.59,150.55,10.0466178]
[1749224506414,0.04358637,150.59,150.55,10.0466178]
[1749224506609,8.20737031,150.59,150.55,10.0466178]
[1749224506809,6.6359,150.58,150.55,10.0466178]
[1749224507009,8.20737031,150.59,150.55,10.0466178]
[1749224507910,8.16378394,150.57,150.55,10.0466178]
[1749224508616,4.74833827,150.58,150.55,10.0466178]
[1749224508819,8.24188135,150.59,150.55,10.0466178]
[1749224509314,8.19829498,150.57,150.55,10.0466178]
[1749224509617,8.20176549,150.56,150.55,10.0466178]
[1749224510112,14.83836549,150.56,150.55,10.0466178]
[1749224510815,12.94741995,150.56,150.45,8.20188035]
[1749224511020,8.20188035,150.53,150.46,6.5143]
[1749224511217,6.6386,150.52,150.46,14.71822004]
[1749224511415,4.7527423,150.53,150.46,14.71822004]
[1749224511618,5.35996445,150.56,150.46,14.71822004]
[1749224511914,6.6396,150.5,150.49,0.05030623]
[1749224512114,0.04567088,150.53,150.49,0.05030623]
[1749224512316,6.639,150.51,150.49,0.05030623]
[1749224512909,6.6392,150.5,150.49,0.05030623]
[1749224513520,6.6392,150.5,150.49,10.05030623]
[1749224514419,4.77058887,150.5,150.49,10.05030623]
[1749224514621,44.88959092,150.53,150.49,10.05030623]
[1749224514812,4.7711205,150.52,150.49,10.05030623]
[1749224515017,4.77146399,150.51,150.49,10.05030623]
[1749224515214,0.04567088,150.53,150.49,10.05030623]
[1749224515522,18.3448308,150.52,150.49,10.05030623]
[1749224515720,13.56981548,150.52,150.49,10.05030623]
[1749224515920,4.77376554,150.51,150.49,10.05030623]
[1749224516117,11.41296554,150.5,150.49,10.05030623]
[1749224516520,11.3809982,150.5,150.49,10.05030623]
[1749224517318,11.3809982,150.5,150.34,12.37597467]
[1749224517319,11.3817982,150.5,150.34,12.37597467]
[1749224517519,8.20847434,150.46,150.38,8.20847434]
[1749224517721,4.7417982,150.45,150.38,44.86847434]
[1749224517921,11.3838982,150.44,150.38,51.51277434]
[1749224518117,8.20847434,150.46,150.38,51.51277434]
[1749224518425,6.6425,150.43,150.4,0.04646696]
[1749224518725,0.04264338,150.44,150.4,0.04646696]
[1749224518928,0.04264338,150.44,150.4,6.68976696]
[1749224519229,0.04264338,150.44,150.4,10.04646696]
[1749224519429,6.68454338,150.44,150.4,16.68976696]
[1749224519621,0.04264338,150.44,150.4,10.04646696]
[1749224519824,0.04264338,150.44,150.41,2.2814]
[1749224520026,8.21154344,150.48,150.41,2.2814]
[1749224520222,4.71337721,150.49,150.41,2.2814]
[1749224520431,4.71337721,150.49,150.42,8.21154344]
[1749224520432,11.35372492,150.49,150.42,8.21154344]
[1749224520627,18.26108001,150.52,150.44,8.21154344]
[1749224520929,0.04470792,150.5,150.46,0.04440225]
[1749224521133,12.96789073,150.5,150.46,0.04440225]
[1749224521433,6.6397,150.49,150.46,0.04440225]
[1749224521724,12.96811582,150.5,150.46,0.04440225]
[1749224521926,0.04470792,150.5,150.46,0.04440225]
[1749224523123,0.04470792,150.5,150.47,6.6401]
[1749224523733,6.68410792,150.5,150.47,6.6401]
[1749224523925,0.04470792,150.5,150.48,6.64]
[1749224524125,0.04470792,150.5,150.46,0.04440225]
[1749224524327,0.04470792,150.5,150.49,6.6396]
[1749224525232,0.04470792,150.5,150.48,6.6398]
[1749224526330,0.04470792,150.5,150.49,6.6396]
[1749224526733,0.04470792,150.5,150.48,6.6398]
[1749224526930,0.04470792,150.5,150.47,36.66]
[1749224527134,0.04470792,150.5,150.48,4.4241]
[1749224527436,19.56218651,150.55,150.48,4.4241]
[1749224527638,419.02,150.59,150.48,4.4241]
[1749224527935,14.84824344,150.56,150.53,6.6378]
[1749224528140,14.84824344,150.56,150.49,8.21154344]
[1749224528325,0.04864586,150.54,150.52,6.6381]
[1749224529334,6.68574586,150.54,150.51,43.34453325]
[1749224529931,0.04864586,150.54,150.52,6.6378]
[1749224530331,0.04864586,150.54,150.51,36.70623325]
[1749224530537,6.68594586,150.54,150.51,43.34443325]
[1749224531933,0.04864586,150.54,150.53,6.6374]
[1749224534535,6.6362,150.56,150.53,16.6374]
[1749224535638,6.68234758,150.56,150.53,16.6374]
[1749224536244,0.04614758,150.56,150.53,10.0]
[1749224536945,6.6369,150.55,150.53,10.0]
[1749224537443,6.637,150.54,150.53,10.0]
[1749224539939,6.6366,150.55,150.53,10.0]
[1749224540245,4.7758419,150.55,150.53,10.0]
[1749224540446,4.77665312,150.55,150.53,10.0]
[1749224541646,4.77726401,150.55,150.53,10.0]
[1749224541949,0.04614758,150.56,150.53,10.0]
[1749224542151,12.9673575,150.55,150.45,419.06]
[1749224542351,8.21154344,150.53,150.46,8.21154344]
[1749224542650,12.9673575,150.53,150.47,6.6399]
[1749224542851,8.21154344,150.53,150.46,8.21154344]
[1749224543051,8.21154344,150.53,150.47,6.6398]
[1749224543249,0.04469128,150.52,150.48,0.04907311]
[1749224543555,6.6386,150.51,150.48,0.04907311]
[1749224543755,6.6386,150.51,150.48,6.68857311]
[1749224544055,6.6386,150.51,150.48,16.68857311]
[1749224544560,6.6386,150.51,150.48,10.04907311]
[1749224546047,6.6388,150.5,150.48,10.04907311]
[1749224546247,0.04469128,150.52,150.48,10.04907311]
[1749224546447,6.6388,150.5,150.48,10.04907311]
[1749224546853,0.04469128,150.52,150.48,10.04907311]
[1749224547056,6.6388,150.5,150.48,10.04907311]
[1749224547553,4.7995651,150.52,150.48,10.04907311]
[1749224547756,0.04469128,150.52,150.48,10.04907311]
[1749224548156,6.639,150.5,150.48,10.04907311]
[1749224548859,4.79917406,150.52,150.48,10.04907311]
[1749224548860,0.04469128,150.52,150.48,10.04907311]
[1749224549051,4.79477042,150.52,150.48,10.04907311]
[1749224549247,8.25623472,150.52,150.48,10.04907311]
[1749224550254,6.6392,150.49,150.48,10.04907311]
[1749224550660,6.6392,150.49,150.38,12.37597467]
[1749224550661,12.96096549,150.5,150.43,6.6418]
[1749224550862,8.21154344,150.48,150.4,46.87814344]
[1749224551064,36.58,150.51,150.4,46.87814344]
[1749224551360,6.6407,150.46,150.4,46.87814344]
[1749224551559,4.74946637,150.5,150.42,12.67524344]
[1749224551759,0.04273448,150.46,150.45,6.6407]
[1749224551966,0.04256831,150.47,150.44,44.83717421]
[1749224552162,0.04256831,150.47,150.45,2.0866]
[1749224552354,0.04256831,150.47,150.46,6.6402]
[1749224552556,44.83438214,150.47,150.34,13.53294726]
[1749224552854,8.21695561,150.41,150.38,6.6439]
[1749224553057,4.74431886,150.45,150.36,8.21695561]
[1749224553256,8.21695561,150.43,150.36,8.21695561]
[1749224553558,6.6434,150.4,150.38,0.05027328]
[1749224554162,0.04650472,150.41,150.38,0.05027328]
[1749224554163,6.6436,150.39,150.38,0.05027328]
[1749224554359,6.6436,150.39,150.38,10.05027328]
[1749224554560,0.04650472,150.41,150.29,8.21695561]
[1749224554561,6.6461,150.34,150.29,8.21695561]
[1749224554764,8.21695561,150.38,150.31,10.31285561]
[1749224554964,8.21695561,150.38,150.31,16.95965561]
[1749224555156,8.21695561,150.38,150.31,53.55965561]
[1749224555357,8.21695561,150.34,150.24,36.6]
[1749224555557,0.04873847,150.32,150.29,0.04400527]
[1749224555764,6.69563847,150.32,150.29,0.04400527]
[1749224555967,0.04873847,150.32,150.29,36.64400527]
[1749224556163,0.04873847,150.32,150.29,43.29180527]
[1749224556469,0.04873847,150.32,150.29,46.64400527]
[1749224556665,0.04873847,150.32,150.29,53.29200527]
[1749224557169,0.04873847,150.32,150.29,10.04400527]
[1749224558065,6.6474,150.31,150.29,10.04400527]
[1749224558262,0.04873847,150.32,150.3,6.6472]
[1749224558463,0.04873847,150.32,150.3,43.2472]
[1749224558664,0.04873847,150.32,150.3,36.6]
[1749224558871,0.04873847,150.32,150.31,6.6471]
[1749224560067,36.6,150.39,150.33,6.6461]
[1749224560068,8.21695561,150.37,150.33,6.6461]
[1749224560262,8.21695561,150.37,150.3,41.0192]
[1749224560467,36.6,150.39,150.31,6.6469]
[1749224560668,8.21695561,150.37,150.3,41.0192]
[1749224561070,0.04433279,150.35,150.32,0.04581109]
[1749224561869,8.2612884,150.35,150.32,0.04581109]
[1749224562170,6.6458,150.34,150.32,0.04581109]
[1749224563269,6.6463,150.33,150.32,0.04581109]
[1749224563466,8.2612884,150.35,150.32,0.04581109]
[1749224564173,6.6461,150.34,150.32,0.04581109]
[1749224564576,8.2612884,150.35,150.32,0.04581109]
[1749224564772,0.04433279,150.35,150.32,0.04581109]
[1749224565170,6.6433,150.4,150.33,8.21695561]
[1749224565466,8.21695561,150.4,150.34,36.3]
[1749224565875,8.21695561,150.38,150.34,36.3]
[1749224566071,8.26213242,150.38,150.34,36.3472549]
[1749224566271,0.04517681,150.38,150.34,36.3472549]
[1749224567079,0.04517681,150.38,150.34,46.3472549]
[1749224567378,0.04517681,150.38,150.35,6.6451]
[1749224567975,0.04517681,150.38,150.36,6.6445]
[1749224568174,0.04517681,150.38,150.34,54.56421051]
[1749224568680,0.04517681,150.38,150.36,6.6447]
[1749224568877,0.04517681,150.38,150.34,54.56421051]
[1749224569081,0.04517681,150.38,150.34,46.3472549]
[1749224569381,8.21695561,150.41,150.34,46.3472549]
[1749224569584,6.6443,150.38,150.35,6.6453]
[1749224570382,0.05052267,150.38,150.35,6.6453]
[1749224570682,0.05052267,150.38,150.34,46.3472549]
[1749224570881,8.21695561,150.36,150.34,10.0472549]
[1749224571182,6.6454,150.35,150.34,10.0472549]
[1749224571381,8.21695561,150.37,150.34,10.0472549]
[1749224571582,6.6451,150.36,150.34,10.0472549]
[1749224572280,6.6454,150.35,150.34,10.0472549]
[1749224572779,8.21695561,150.37,150.34,10.0472549]
[1749224572780,14.86185561,150.37,150.34,10.0472549]
[1749224572981,8.21695561,150.37,150.34,10.0472549]
[1749224573590,6.6449,150.36,150.34,10.0472549]
[1749224573786,8.21695561,150.37,150.34,10.0472549]
[1749224574386,0.05052267,150.38,150.34,10.0472549]
[1749224574590,8.26747828,150.38,150.34,10.0472549]
[1749224574777,6.69482267,150.38,150.34,16.6928549]
[1749224574978,0.05052267,150.38,150.34,10.0472549]
[1749224575387,6.6448,150.37,150.34,10.0472549]
[1749224576389,6.6448,150.37,150.34,16.6929549]
[1749224576788,0.05052267,150.38,150.34,18.26421051]
[1749224577187,0.05052267,150.38,150.35,8.21695561]
[1749224577384,0.05052267,150.38,150.36,6.6449]
[1749224577890,0.05052267,150.38,150.36,6.6447]
[1749224578584,6.6438,150.39,150.36,6.6447]
[1749224579188,6.6443,150.38,150.35,14.86205561]
[1749224579492,6.69361361,150.38,150.35,18.21695561]
[1749224579694,0.04931361,150.38,150.35,18.21695561]
[1749224580084,36.3,150.45,150.37,8.21695561]
[1749224580281,2.0298,150.46,150.39,8.21695561]
[1749224580282,8.21695561,150.46,150.39,8.21695561]
[1749224581186,8.21695561,150.46,150.41,6.6884067]
[1749224581187,6.6877421,150.44,150.41,6.6884067]
[1749224581484,0.0460421,150.44,150.41,0.0458067]
[1749224582390,6.6878421,150.44,150.41,0.0458067]
[1749224582590,6.6878421,150.44,150.41,6.6885067]
[1749224582989,0.0460421,150.44,150.41,8.26276231]